bitfinex/quotes_SOLUSD_20220128
["timestamp","ask_amount","ask_price","bid_price","bid_amount"]
[1643367509766,16.908,88.83,88.751,2.15649254]
[1643367509967,6.0,88.839,88.751,2.15649254]
[1643367510167,0.25,88.83,88.751,2.15649254]
[1643367510368,6.0,88.839,88.751,2.15649254]
[1643367510569,6.0,88.839,88.761,6.0]
[1643367510967,0.25,88.84,88.761,6.0]
[1643367511467,46.18277635,88.849,88.762,2.15649254]
[1643367511868,46.18277635,88.849,88.772,6.0]
[1643367512469,46.18277635,88.849,88.78,6.0]
[1643367512869,46.18277635,88.849,88.78,6.25]
[1643367513271,0.25,88.85,88.78,6.25]
[1643367513470,17.153,88.86,88.78,6.25]
[1643367513873,3.08951426,88.859,88.78,6.25]
[1643367514272,44.06439363,88.858,88.78,6.25]
[1643367514674,3.08951426,88.857,88.78,6.25]
[1643367515076,3.08951426,88.857,88.78,6.0]
[1643367515276,16.904,88.85,88.745,10.93284764]
[1643367515482,3.08951426,88.849,88.75,13.54]
[1643367515683,6.0,88.84,88.75,13.54]
[1643367515876,9.08951426,88.839,88.75,13.54]
[1643367516104,6.0,88.83,88.75,13.54]
[1643367516280,6.25,88.83,88.75,13.54]
[1643367516477,6.0,88.828,88.75,13.54]
[1643367516683,6.25,88.83,88.75,13.79]
[1643367516879,0.25,88.83,88.75,13.79]
[1643367517079,17.157,88.83,88.75,13.79]
[1643367517677,17.157,88.83,88.75,13.54]
[1643367517881,17.157,88.83,88.751,2.15649254]
[1643367518079,0.25,88.83,88.761,6.0]
[1643367518284,16.903,88.85,88.77,13.54]
[1643367518580,3.09802258,88.849,88.78,6.0]
[1643367518780,3.09802258,88.849,88.78,6.25]
[1643367518978,3.09802258,88.849,88.781,6.0]
[1643367519378,3.09802258,88.849,88.79,6.0]
[1643367519578,16.899,88.87,88.79,6.0]
[1643367519579,3.09802258,88.869,88.79,6.0]
[1643367519777,3.09802258,88.869,88.781,6.0]
[1643367519978,3.09802258,88.869,88.79,6.0]
[1643367520179,16.902,88.86,88.79,6.0]
[1643367520381,3.09802258,88.859,88.77,13.54]
[1643367520579,26.25912258,88.859,88.77,13.54]
[1643367520779,3.09802258,88.858,88.77,13.54]
[1643367521379,3.09802258,88.858,88.77,13.79]
[1643367522079,16.904,88.85,88.77,13.79]
[1643367522280,17.154,88.85,88.77,13.79]
[1643367522481,3.09802258,88.849,88.77,13.79]
[1643367523382,3.09802258,88.849,88.78,6.0]
[1643367523780,3.09802258,88.849,88.78,6.25]
[1643367523981,3.09802258,88.849,88.78,13.79]
[1643367524380,3.09802258,88.849,88.78,13.54]
[1643367524582,16.906,88.84,88.78,13.54]
[1643367524784,48.29110167,88.839,88.78,13.54]
[1643367525185,3.09802258,88.838,88.78,13.54]
[1643367526184,3.09802258,88.839,88.78,13.54]
[1643367526383,3.09802258,88.837,88.78,13.79]
[1643367526580,17.156,88.84,88.78,13.79]
[1643367526581,3.09802258,88.839,88.78,13.79]
[1643367526780,3.09802258,88.839,88.78,13.54]
[1643367527791,3.09802258,88.859,88.79,6.0]
[1643367528087,56.327,88.9,88.8,13.54]
[1643367528088,4.59168572,88.879,88.8,13.54]
[1643367528290,9.30161644,88.899,88.8,13.54]
[1643367528291,4.59168572,88.891,88.8,13.54]
[1643367528490,41.23749656,88.89,88.81,6.0]
[1643367528695,3.09802258,88.889,88.82,13.54]
[1643367528891,3.09802258,88.889,88.82,13.79]
[1643367530090,16.898,88.88,88.82,13.54]
[1643367530292,17.148,88.88,88.82,13.54]
[1643367530495,7.6897083,88.879,88.82,13.54]
[1643367530691,7.6897083,88.879,88.8,13.54]
[1643367531315,3.10591971,88.849,88.8,13.54]
[1643367531513,3.10591971,88.848,88.8,13.54]
[1643367531913,3.10591971,88.839,88.769,112.8]
[1643367532114,3.10591971,88.834,88.78,13.54]
[1643367532317,3.10591971,88.829,88.78,13.54]
[1643367532514,3.10591971,88.81,88.76,13.54]
[1643367532718,16.911,88.81,88.74,13.54]
[1643367532917,6.0,88.8,88.74,13.54]
[1643367533414,0.25,88.8,88.74,13.54]
[1643367534615,6.0,88.799,88.74,13.54]
[1643367534815,0.25,88.8,88.74,13.54]
[1643367535115,6.0,88.799,88.74,13.54]
[1643367535316,0.25,88.8,88.74,13.54]
[1643367536118,35.14539944,88.809,88.74,13.54]
[1643367536324,3.10635322,88.808,88.74,13.54]
[1643367537315,0.25,88.807,88.74,13.54]
[1643367537516,6.0,88.798,88.74,13.54]
[1643367537715,0.25,88.807,88.74,13.54]
[1643367537916,0.25,88.807,88.741,0.25]
[1643367538316,6.0,88.806,88.741,0.25]
[1643367538518,0.25,88.807,88.741,0.25]
[1643367539116,0.25,88.807,88.74,13.54]
[1643367539117,6.0,88.805,88.74,13.54]
[1643367539316,0.25,88.804,88.74,13.54]
[1643367541916,6.0,88.8,88.74,13.54]
[1643367542119,6.0,88.8,88.72,13.54]
[1643367542318,45.4654,88.799,88.721,0.25]
[1643367542518,6.0,88.789,88.721,0.25]
[1643367542718,47.71534008,88.788,88.721,0.25]
[1643367542918,53.96534008,88.788,88.721,0.25]
[1643367543118,6.0,88.778,88.721,0.25]
[1643367543518,0.25,88.777,88.721,0.25]
[1643367543717,6.0,88.778,88.721,0.25]
[1643367543920,3.10591971,88.814,88.721,0.25]
[1643367544121,6.0,88.804,88.721,0.25]
[1643367544319,0.25,88.803,88.721,0.25]
[1643367544519,6.25,88.803,88.721,0.25]
[1643367544721,44.41200042,88.802,88.721,0.25]
[1643367545018,6.0,88.792,88.721,0.25]
[1643367545418,6.0,88.79,88.721,0.25]
[1643367545619,0.25,88.791,88.721,0.25]
[1643367546619,16.915,88.79,88.721,0.25]
[1643367546822,0.25,88.789,88.721,0.25]
[1643367547820,0.25,88.789,88.72,13.54]
[1643367548020,16.915,88.79,88.72,13.54]
[1643367548220,0.25,88.789,88.72,13.54]
[1643367549524,16.911,88.81,88.73,6.0]
[1643367549721,3.10591971,88.819,88.74,13.54]
[1643367549924,3.10591971,88.833,88.74,13.54]
[1643367550221,48.0138,88.835,88.72,17.2914]
[1643367550222,3.10591971,88.821,88.72,17.2914]
[1643367550422,16.911,88.81,88.709,118.8]
[1643367550621,44.30341672,88.809,88.72,13.54]
[1643367550822,6.0,88.8,88.72,13.54]
[1643367551023,6.0,88.798,88.72,13.54]
[1643367551224,0.25,88.799,88.72,13.54]
[1643367551423,0.25,88.799,88.67,169.24]
[1643367551424,0.31926581,88.784,88.659,501.77033421]
[1643367551624,36.73570695,88.779,88.659,501.77033421]
[1643367551924,26.75486929,88.778,88.66,13.54]
[1643367552225,23.6568,88.778,88.66,15.69649254]
[1643367552423,6.0,88.768,88.661,12.94489573]
[1643367552623,6.0,88.768,88.671,6.0]
[1643367552825,0.25,88.767,88.68,13.54]
[1643367553224,0.25,88.767,88.681,0.25]
[1643367553424,0.25,88.767,88.69,6.0]
[1643367553628,3.10591971,88.801,88.691,119.05]
[1643367553829,0.25,88.8,88.695,111.9]
[1643367554027,0.25,88.8,88.705,6.0]
[1643367554227,3.10591971,88.823,88.705,6.0]
[1643367554431,3.10591971,88.823,88.706,0.25]
[1643367554630,3.09686595,88.822,88.71,6.0]
[1643367554832,3.10591971,88.829,88.711,113.05]
[1643367555030,3.10591971,88.829,88.721,6.0]
[1643367555431,3.10591971,88.83,88.722,11.03840319]
[1643367555731,3.10591971,88.832,88.723,10.78840319]
[1643367555931,3.10591971,88.832,88.723,12.94489573]
[1643367556131,3.10591971,88.842,88.733,6.0]
[1643367556332,16.901,88.87,88.733,6.0]
[1643367556333,3.10591971,88.852,88.738,0.31629014]
[1643367556532,3.10591971,88.852,88.744,6.0]
[1643367556731,3.09863315,88.869,88.75,13.54]
[1643367556732,3.10591971,88.857,88.75,13.54]
[1643367556932,16.901,88.87,88.75,13.54]
[1643367556933,3.09863315,88.851,88.75,13.54]
[1643367557133,3.10591971,88.859,88.76,6.0]
[1643367557339,3.10591971,88.864,88.77,182.78]
[1643367557536,3.10591971,88.873,88.78,6.0]
[1643367557734,3.10591971,88.876,88.79,13.84394009]
[1643367557937,3.10591971,88.889,88.801,112.8]
[1643367558138,3.10591971,88.898,88.82,0.3130541]
[1643367558337,3.10591971,88.9,88.831,112.8]
[1643367558534,9.29589944,88.942,88.841,6.0]
[1643367558535,3.10591971,88.905,88.841,6.0]
[1643367558741,3.10591971,88.904,88.85,13.54]
[1643367559135,3.10591971,88.901,88.85,13.54]
[1643367559339,6.20455286,88.903,88.85,13.54]
[1643367559537,40.97260204,88.928,88.85,13.54]
[1643367559538,3.09863315,88.9,88.85,13.54]
[1643367559736,3.09863315,88.902,88.851,0.25]
[1643367559938,3.10591971,88.902,88.851,0.25]
[1643367560137,4.59168572,88.928,88.85,13.54]
[1643367560138,1.54821496,88.883,88.85,13.54]
[1643367560338,1.54821496,88.883,88.851,0.25]
[1643367560537,1.54821496,88.883,88.851,113.05]
[1643367560737,0.25,88.901,88.851,113.05]
[1643367560738,1.54821496,88.889,88.86,6.0]
[1643367561040,4.59168572,88.939,88.861,6.0]
[1643367561041,1.39641971,88.921,88.861,6.0]
[1643367561236,4.59168572,88.97,88.862,112.8]
[1643367561439,4.59168572,88.982,88.87,6.0]
[1643367561740,2.95669142,88.98,88.88,13.54]
[1643367561940,2.95669142,88.969,88.88,13.54]
[1643367562137,16.88,88.97,88.89,6.0]
[1643367562337,3.09394881,88.968,88.891,0.25]
[1643367562539,3.09394881,88.969,88.891,0.25]
[1643367563136,16.883,88.96,88.891,0.25]
[1643367563538,4.59168572,88.998,88.895,0.30511034]
[1643367563737,3.08368073,89.046,88.91,169.24]
[1643367563936,46.6303,89.045,88.92,13.54]
[1643367564136,3.08368073,89.044,88.924,6.0]
[1643367564336,52.38448636,89.044,88.931,112.8]
[1643367564537,3.08368073,89.044,88.942,0.30280465]
[1643367564737,48.5789,89.074,88.942,0.30280465]
[1643367565036,3.08354428,89.073,88.95,6.0]
[1643367565239,3.08354428,89.073,88.96,13.54]
[1643367565436,45.76667667,89.072,88.96,13.54]
[1643367565638,16.865,89.06,88.96,13.54]
[1643367565836,3.08354428,89.059,88.96,13.54]
[1643367566037,39.8884293,89.049,88.96,13.54]
[1643367566239,45.8884293,89.049,88.96,13.54]
[1643367566637,0.25,89.048,88.96,13.54]
[1643367569839,45.8884293,89.049,88.96,13.54]
[1643367571242,0.25,89.048,88.96,13.54]
[1643367571844,0.25,89.048,88.891,47.1553]
[1643367572042,24.2156,89.048,88.94,13.54]
[1643367572442,16.869,89.03,88.94,13.54]
[1643367572646,41.92816186,89.019,88.94,13.54]
[1643367573045,6.0,89.009,88.94,13.54]
[1643367574654,0.25,89.008,88.94,13.54]
[1643367575555,6.0,89.0,88.94,13.54]
[1643367575952,0.25,88.999,88.94,13.54]
[1643367576759,44.03436021,88.999,88.94,13.54]
[1643367578061,6.0,88.989,88.94,13.54]
[1643367579664,0.25,88.988,88.94,13.54]
[1643367580377,6.0,88.989,88.94,13.54]
[1643367580776,47.3064,89.029,88.94,13.54]
[1643367580777,47.3064,89.029,88.941,0.25]
[1643367580977,47.3064,89.029,88.941,2.41244888]
[1643367581178,47.3064,89.029,88.942,2.16244888]
[1643367581378,47.3064,89.029,88.943,0.25]
[1643367581579,44.79981274,89.028,88.943,0.25]
[1643367581879,44.79981274,89.028,88.943,2.41244888]
[1643367582378,47.3064,89.029,88.943,2.41244888]
[1643367583182,0.25,89.028,88.943,2.41244888]
[1643367583379,49.47378137,89.028,88.943,2.41244888]
[1643367583579,49.47378137,89.028,88.941,112.8]
[1643367583780,49.47378137,89.028,88.951,6.0]
[1643367583979,49.47378137,89.028,88.96,13.54]
[1643367584179,49.47378137,89.028,88.97,13.54]
[1643367586281,49.47378137,89.028,88.971,0.25]
[1643367586483,0.25,89.028,88.971,0.25]
[1643367586682,56.219,89.07,88.971,0.25]
[1643367586883,3.07775652,89.069,88.972,2.16065034]
[1643367587084,3.07775652,89.069,88.983,112.8]
[1643367587283,49.4152,89.074,88.983,112.8]
[1643367587284,3.07775652,89.073,88.99,13.54]
[1643367587482,3.07775652,89.073,88.993,6.0]
[1643367587683,3.07775652,89.079,89.0,6.0]
[1643367587883,96.5254,89.149,89.0,6.0]
[1643367587884,4.59168572,89.119,89.01,13.54]
[1643367588083,4.59168572,89.119,89.02,6.0]
[1643367588285,4.59168572,89.119,89.03,13.54]
[1643367588483,35.87103557,89.118,89.03,13.54]
[1643367588783,3.07775652,89.117,89.031,0.25]
[1643367588983,6.0,89.108,89.04,6.0]
[1643367589182,6.0,89.107,89.05,13.54]
[1643367589383,9.07775652,89.107,89.051,0.25]
[1643367589585,3.07775652,89.106,89.051,0.25]
[1643367590087,4.59168572,89.126,89.051,0.25]
[1643367590285,0.00458317,89.064,89.051,19.71186825]
[1643367590489,0.00458317,89.064,89.06,6.0]
[1643367590689,0.00458317,89.064,89.061,6.0]
[1643367590889,0.00458317,89.064,89.062,6.25]
[1643367591089,0.00458317,89.064,89.062,8.41065034]
[1643367591288,0.00458317,89.064,89.062,38.03777103]
[1643367591489,0.00458317,89.064,89.063,215.42251859]
[1643367591687,0.00458317,89.064,89.063,227.74842137]
[1643367591887,0.00458317,89.064,89.063,227.99842137]
[1643367592088,0.00458317,89.064,89.063,225.83777103]
[1643367592288,0.00458317,89.064,89.063,38.03777103]
[1643367592689,0.00458317,89.064,89.063,25.71186825]
[1643367593291,0.00458317,89.064,89.063,100.71186825]
[1643367593993,0.00458317,89.064,89.063,102.87251859]
[1643367594192,0.00458317,89.064,89.063,215.42251859]
[1643367594392,0.00458317,89.064,89.063,213.26186825]
[1643367594995,0.00458317,89.064,89.063,215.42251859]
[1643367595196,0.00458317,89.064,89.063,227.63647693]
[1643367595594,0.00458317,89.064,89.063,227.88647693]
[1643367595793,0.00458317,89.064,89.063,237.32647693]
[1643367595992,0.00458317,89.064,89.063,227.88647693]
[1643367596195,0.00458317,89.064,89.063,225.72582659]
[1643367596392,0.00458317,89.064,89.063,37.67582659]
[1643367596593,0.00458317,89.064,89.063,25.46186825]
[1643367596797,0.00458317,89.064,89.053,78.2315]
[1643367596995,0.00458317,89.064,89.063,6.0]
[1643367597194,0.00458317,89.064,89.063,81.0]
[1643367597595,0.00458317,89.064,89.063,100.46186825]
[1643367597798,0.00458317,89.064,89.063,100.71186825]
[1643367597999,0.00458317,89.064,89.063,100.46186825]
[1643367598397,0.00458317,89.064,89.063,25.46186825]
[1643367598596,0.00458317,89.064,89.063,19.46186825]
[1643367599598,0.00458317,89.064,89.063,21.62251859]
[1643367599797,0.00458317,89.064,89.063,21.87251859]
[1643367600200,0.00458317,89.064,89.063,96.87251859]
[1643367600398,0.00458317,89.064,89.063,209.67251859]
[1643367600598,0.00458317,89.064,89.063,221.74203249]
[1643367600998,0.00458317,89.064,89.063,219.58138215]
[1643367601597,0.00458317,89.064,89.063,221.74203249]
[1643367602901,0.00458317,89.064,89.063,146.74203249]
[1643367603102,75.00458317,89.064,89.05,174.48636582]
[1643367603301,75.00458317,89.064,89.039,12.0695139]
[1643367603302,75.00458317,89.064,89.04,13.54]
[1643367605002,43.60195552,89.063,89.04,13.54]
[1643367605405,0.25,89.062,88.98,169.24]
[1643367605602,0.25,89.062,88.99,19.54]
[1643367605902,0.25,89.062,88.991,0.25]
[1643367606126,0.25,89.062,88.991,6.25]
[1643367607402,0.25,89.063,88.991,6.25]
[1643367607603,75.00458317,89.064,88.991,8.41065034]
[1643367607805,0.00458317,89.064,88.992,112.8]
[1643367608004,0.00458317,89.064,88.991,8.41065034]
[1643367608005,0.00458317,89.064,89.001,112.8]
[1643367608204,0.00458317,89.064,89.011,6.0]
[1643367608404,0.00458317,89.064,89.02,16.846]
[1643367608603,0.00458317,89.064,89.041,112.8]
[1643367608805,0.00458317,89.064,89.05,13.54]
[1643367609006,0.00458317,89.064,89.06,6.0]
[1643367609406,0.00458317,89.064,89.062,6.0]
[1643367609606,0.00458317,89.064,89.061,0.25]
[1643367609810,0.00458317,89.064,89.06,6.0]
[1643367611210,0.00458317,89.064,89.061,0.25]
[1643367612412,0.00458317,89.064,89.061,113.05]
[1643367612614,0.00458317,89.064,89.062,2.16065034]
[1643367612814,0.00458317,89.064,89.063,75.25]
[1643367613014,3.09499774,89.157,89.063,188.05]
[1643367613216,3.09499774,89.157,89.07,13.54]
[1643367613416,3.09499774,89.157,89.073,6.0]
[1643367613632,3.09499774,89.157,89.08,6.0]
[1643367613831,0.25,89.156,89.09,13.54]
[1643367614234,0.25,89.156,89.091,0.25]
[1643367614435,0.25,89.157,89.091,0.25]
[1643367614632,3.09997217,89.155,89.091,0.25]
[1643367614832,0.25,89.154,89.091,13.26]
[1643367615033,0.25,89.157,89.101,6.0]
[1643367615234,0.25,89.155,89.11,13.54]
[1643367615434,4.59168572,89.193,89.11,13.54]
[1643367615634,4.59168572,89.193,89.111,113.05]
[1643367616035,4.59168572,89.205,89.111,113.05]
[1643367616436,4.59168572,89.205,89.121,6.0]
[1643367616836,4.59168572,89.203,89.13,13.54]
[1643367617039,4.59168572,89.203,89.14,6.0]
[1643367617236,4.59168572,89.203,89.14,19.54]
[1643367617837,4.59168572,89.203,89.141,0.25]
[1643367618037,3.09816924,89.233,89.141,2.41065017]
[1643367618236,2.5832449,89.25,89.142,75.35945017]
[1643367618438,9.30732278,89.299,89.151,6.0]
[1643367618635,36.03920933,89.298,89.16,182.78]
[1643367618836,9.30732278,89.297,89.17,182.78]
[1643367619036,9.30732278,89.299,89.18,19.54]
[1643367619239,9.30732278,89.299,89.18,188.78]
[1643367619437,3.10244093,89.299,89.181,6.25]
[1643367619642,3.10244093,89.299,89.19,6.0]
[1643367619837,42.53436523,89.299,89.2,13.54]
[1643367620037,42.53436523,89.299,89.21,6.0]
[1643367620238,6.0,89.289,89.22,13.54]
[1643367620436,71.5054,89.3,89.22,13.54]
[1643367620437,3.10244093,89.288,89.22,13.54]
[1643367620738,3.10244093,89.287,89.23,6.0]
[1643367620938,3.10244093,89.287,89.24,13.54]
[1643367621136,3.10244093,89.299,89.24,13.54]
[1643367621338,3.10244093,89.286,89.241,0.25]
[1643367621538,43.62315051,89.312,89.241,0.25]
[1643367622039,6.0,89.302,89.241,0.25]
[1643367622439,6.0,89.301,89.241,0.25]
[1643367623041,6.0,89.33,89.241,0.25]
[1643367623442,3.0756153,89.329,89.24,13.54]
[1643367623642,6.0,89.319,89.24,13.54]
[1643367623842,3.3256153,89.318,89.24,13.54]
[1643367624042,3.0756153,89.317,89.24,1e-08]
[1643367624443,56.07,89.31,89.24,1e-08]
[1643367624748,10.59366515,89.308,89.19,13.54]
[1643367625043,41.14036356,89.309,89.19,13.54]
[1643367625044,10.59366515,89.303,89.19,13.54]
[1643367625444,3.3256153,89.302,89.19,13.54]
[1643367625645,3.0756153,89.301,89.19,13.54]
[1643367625844,0.25,89.3,89.19,13.54]
[1643367626047,3.0756153,89.299,89.19,13.54]
[1643367626445,0.25,89.298,89.19,13.54]
[1643367626645,46.70876102,89.288,89.19,13.54]
[1643367626844,0.25,89.287,89.19,13.54]
[1643367627045,6.0,89.278,89.19,13.54]
[1643367627447,0.25,89.277,89.19,13.54]
[1643367627648,6.0,89.27,89.16,13.54]
[1643367627848,42.17427424,89.269,89.09,169.24]
[1643367628048,6.0,89.259,89.1,13.54]
[1643367628246,24.5612,89.258,89.1,13.54]
[1643367628447,3.0644592,89.257,89.1,13.54]
[1643367628647,38.40214805,89.247,89.1,13.54]
[1643367628848,23.1765,89.246,89.101,19.02633045]
[1643367629051,23.1765,89.246,89.101,19.27633045]
[1643367629251,6.0,89.236,89.102,16.86691685]
[1643367629452,6.0,89.236,89.111,6.0]
[1643367629651,0.25,89.235,89.12,13.54]
[1643367630652,0.25,89.235,89.121,2.1594136]
[1643367630653,6.0,89.227,89.121,2.1594136]
[1643367630855,0.25,89.226,89.13,6.0]
[1643367631053,6.0,89.227,89.14,13.54]
[1643367631252,24.9397,89.269,89.15,13.54]
[1643367631253,6.0,89.236,89.15,13.54]
[1643367631454,6.0,89.236,89.16,13.54]
[1643367631651,6.0,89.24,89.16,13.54]
[1643367631851,0.25,89.239,89.16,13.54]
[1643367632052,6.0,89.236,89.16,13.54]
[1643367632252,6.0,89.236,89.161,0.25]
[1643367632455,6.0,89.236,89.161,113.05]
[1643367632653,0.25,89.239,89.161,113.05]
[1643367633054,6.0,89.24,89.161,113.05]
[1643367633255,6.0,89.24,89.162,0.25]
[1643367633856,6.0,89.24,89.171,6.0]
[1643367634056,6.0,89.24,89.18,13.54]
[1643367634256,0.25,89.239,89.18,13.54]
[1643367634858,35.61527909,89.239,89.18,13.54]
[1643367635062,6.0,89.229,89.18,13.54]
[1643367635359,0.25,89.228,89.18,13.54]
[1643367636560,0.25,89.239,89.18,13.54]
[1643367636961,0.25,89.239,89.181,0.25]
[1643367637361,6.0,89.24,89.182,2.1594136]
[1643367637565,6.0,89.24,89.183,0.25]
[1643367637765,24.9397,89.269,89.192,6.0]
[1643367638063,24.9397,89.269,89.2,13.54]
[1643367638863,22.8688,89.302,89.201,0.25]
[1643367639064,75.0,89.281,89.2,7.2]
[1643367639264,3.0791526,89.28,89.2,7.2]
[1643367639463,6.0,89.271,89.2,7.2]
[1643367639663,3.0791526,89.27,89.2,7.2]
[1643367639887,6.25,89.269,89.2,7.2]
[1643367640066,0.25,89.269,89.2,7.2]
[1643367640267,0.25,89.281,89.2,7.2]
[1643367640466,6.0,89.28,89.201,2.14846911]
[1643367640667,16.816,89.31,89.21,6.0]
[1643367640869,111.9,89.363,89.211,6.0]
[1643367641066,48.9723,89.362,89.22,13.54]
[1643367641265,58.21664023,89.362,89.233,0.31303859]
[1643367641467,58.21664023,89.362,89.24,182.78]
[1643367641468,3.08144674,89.361,89.24,182.78]
[1643367641864,3.08144674,89.361,89.25,6.0]
[1643367642065,9.24871684,89.361,89.26,13.54]
[1643367642267,9.24871684,89.361,89.261,0.25]
[1643367642466,6.0,89.351,89.26,13.54]
[1643367642669,6.0,89.351,89.261,0.25]
[1643367642966,9.08144674,89.35,89.261,0.25]
[1643367643167,3.08144674,89.349,89.27,6.0]
[1643367643369,16.81,89.34,89.28,13.54]
[1643367643571,3.08144674,89.339,89.28,13.54]
[1643367643768,3.33144674,89.339,89.28,13.54]
[1643367643967,6.0,89.329,89.28,13.54]
[1643367644166,0.25,89.328,89.28,13.54]
[1643367644367,3.08385194,89.327,89.28,1e-08]
[1643367644567,0.25,89.328,89.28,1e-08]
[1643367645567,3.08856161,89.327,89.28,1e-08]
[1643367645767,0.25,89.326,89.28,1e-08]
[1643367645968,6.0,89.317,89.28,1e-08]
[1643367646368,0.25,89.316,89.28,1e-08]
[1643367647169,0.25,89.316,89.26,13.54]
[1643367647393,6.0,89.309,89.23,13.54]
[1643367647569,46.83904456,89.304,89.192,17.1412]
[1643367647772,3.33783195,89.303,89.2,13.54]
[1643367647973,6.0,89.294,89.2,13.54]
[1643367648173,16.823,89.29,89.201,0.25]
[1643367648371,47.15309656,89.288,89.201,0.25]
[1643367648572,6.0,89.278,89.201,0.25]
[1643367648771,0.25,89.277,89.201,0.25]
[1643367649474,6.25,89.277,89.201,0.25]
[1643367649672,0.25,89.277,89.201,0.25]
[1643367649871,6.0,89.267,89.201,0.25]
[1643367650073,0.25,89.266,89.21,13.54]
[1643367650273,0.25,89.266,89.211,0.25]
[1643367651276,0.25,89.268,89.21,13.54]
[1643367651476,0.25,89.268,89.19,13.54]
[1643367651676,6.0,89.259,89.16,13.54]
[1643367651976,0.25,89.258,89.161,0.25]
[1643367652175,48.98244548,89.249,89.161,0.25]
[1643367652374,0.25,89.248,89.16,13.54]
[1643367653376,48.98244548,89.249,89.16,13.54]
[1643367653676,3.09275605,89.275,89.17,6.0]
[1643367653879,19.91375605,89.28,89.18,13.54]
[1643367654076,6.0,89.265,89.18,13.54]
[1643367654277,6.0,89.265,89.181,2.37717415]
[1643367654675,6.0,89.27,89.182,2.12717415]
[1643367654901,6.0,89.268,89.183,0.25]
[1643367655675,44.33676147,89.278,89.183,0.25]
[1643367655877,6.0,89.258,89.183,0.25]
[1643367656077,6.0,89.267,89.182,0.25]
[1643367656277,0.25,89.266,89.182,0.25]
[1643367656480,6.0,89.267,89.182,0.25]
[1643367656680,6.0,89.268,89.182,9.85]
[1643367656880,6.0,89.268,89.183,112.8]
[1643367657282,6.0,89.268,89.184,0.25]
[1643367657479,3.0946969,89.267,89.182,9.6]
[1643367657881,0.25,89.266,89.182,9.6]
[1643367658082,37.746355,89.256,89.182,9.6]
[1643367658283,0.25,89.255,89.182,9.6]
[1643367658886,6.0,89.246,89.182,9.6]
[1643367659084,6.0,89.244,89.182,9.6]
[1643367659285,0.25,89.243,89.182,9.6]
[1643367659686,36.59329289,89.242,89.182,9.6]
[1643367659886,0.25,89.241,89.182,9.6]
[1643367660087,6.0,89.232,89.182,9.6]
[1643367660286,0.25,89.231,89.183,0.25]
[1643367660687,6.0,89.23,89.183,0.25]
[1643367660888,0.25,89.229,89.182,9.6]
[1643367662187,3.09275605,89.251,89.183,0.25]
[1643367662414,0.25,89.25,89.183,0.25]
[1643367662613,6.0,89.245,89.183,0.25]
[1643367662813,0.25,89.244,89.183,0.25]
[1643367663415,6.0,89.243,89.183,0.25]
[1643367663717,0.25,89.244,89.183,0.25]
[1643367664914,6.0,89.247,89.183,0.25]
[1643367665117,3.34275605,89.256,89.183,0.25]